[Event "47th GER-ch Blitz 2020"]
[Site "Magdeburg"]
[Date "2020.08.15"]
[Round "25.12"]
[White "Stein, Robert"]
[Black "Holtel, Jasper"]
[Result "1-0"]
[ECO "D71"]
[WhiteElo "2325"]
[BlackElo "2305"]
[Annotator "ChessBase"]
[PlyCount "111"]
[EventDate "2020.07.28"]
[EventType "tourn"]
[EventCountry "GER"]
[SourceTitle "playchess.com"]
[Source "ChessBase"]
[SourceQuality "1"]
[TimeControl "180+2"]

1. d4 {[%emt 0:00:00]} Nf6 {[%emt 0:00:00]} 2. c4 {[%emt 0:00:00]} g6 {[%emt 0:00:00]} 3. g3 {[%emt 0:00:00]} c6 {[%emt 0:00:00]} 4. Bg2 {[%emt 0:00:01]} d5 {[%emt 0:00:01]} 5. Qa4 {[%emt 0:00:00]} Bg7 {[%emt 0:00:15]} 6. cxd5 {[%emt 0:00:02]} O-O {[%emt 0:00:15]} 7. Nf3 {[%emt 0:00:14]} cxd5 {[%emt 0:00:02]} 8. O-O {[%emt 0:00:01]} Nc6 {[%emt 0:00:11]} 9. Nc3 {[%emt 0:00:02]} Ne4 {[%emt 0:00:02]} 10. Qb3 {[%emt 0:00:03]} Nxd4 {[%emt 0:00:21]} 11. Nxd4 {[%emt 0:00:03]} Bxd4 {[%emt 0:00:02]} 12. Nxd5 {[%emt 0:00:18]} Nd6 {[%emt 0:00:25]} 13. Bh6 {[%emt 0:00:04]} Re8 {[%emt 0:00:03]} 14. Rfd1 {[%emt 0:00:03]} Bh8 {[%emt 0:00:07]} 15. Rac1 {[%emt 0:00:20]} Be6 {[%emt 0:00:03]} 16. Qa3 {[%emt 0:00:19]} Bxd5 {[%emt 0:00:03]} 17. Bxd5 {[%emt 0:00:08]} Qb6 {[%emt 0:00:02]} 18. b3 {[%emt 0:00:10]} Rec8 {[%emt 0:00:12]} 19. Qa4 {[%emt 0:00:28]} e6 {[%emt 0:00:13]} 20. Be3 {[%emt 0:00:14]} Rxc1 {[%emt 0:00:21]} 21. Rxc1 {[%emt 0:00:03]} Qd8 {[%emt 0:00:01]} 22. Bf3 {[%emt 0:00:06]} a6 {[%emt 0:00:13]} 23. Rd1 {[%emt 0:00:12]} Qc7 {[%emt 0:00:23]} 24. Qb4 {[%emt 0:00:10]} Nb5 {[%emt 0:00:04]} 25. Rc1 {[%emt 0:00:17]} Bc3 {[%emt 0:00:18]} 26. Qe4 {[%emt 0:00:05]} Qa5 {[%emt 0:00:09]} 27. a4 {[%emt 0:00:03]} Nd6 {[%emt 0:00:03]} 28. Qd3 {[%emt 0:00:09]} Bb4 {[%emt 0:00:01]} 29. Bd4 {[%emt 0:00:09]} Rd8 {[%emt 0:00:01]} 30. Ba1 {[%emt 0:00:04]} Nf5 {[%emt 0:00:05]} 31. Qe4 {[%emt 0:00:03]} Bf8 {[%emt 0:00:01]} 32. Qxb7 {[%emt 0:00:03]} Qd2 {[%emt 0:00:02]} 33. Rf1 {[%emt 0:00:01]} Qa2 {[%emt 0:00:02]} 34. Bc3 {[%emt 0:00:03]} Bg7 {[%emt 0:00:04]} 35. Bxg7 {[%emt 0:00:01]} Kxg7 {[%emt 0:00:00]} 36. Qxa6 {[%emt 0:00:02]} Qxb3 {[%emt 0:00:02]} 37. e3 {[%emt 0:00:03]} h5 {[%emt 0:00:01]} 38. a5 {[%emt 0:00:02]} h4 {[%emt 0:00:01]} 39. Qb7 {[%emt 0:00:01]} Qa2 {[%emt 0:00:05]} 40. a6 {[%emt 0:00:02]} Rd6 {[%emt 0:00:03]} 41. a7 {[%emt 0:00:01]} Ra6 {[%emt 0:00:00]} 42. a8=Q {[%emt 0:00:02]} Rxa8 {[%emt 0:00:01]} 43. Qxa8 {[%emt 0:00:01]} Qd2 {[%emt 0:00:02]} 44. Qe4 {[%emt 0:00:02]} Qd8 {[%emt 0:00:03]} 45. Qe5+ {[%emt 0:00:02]} Kg8 {[%emt 0:00:00]} 46. Rd1 {[%emt 0:00:02]} Qc8 {[%emt 0:00:03]} 47. g4 {[%emt 0:00:04]} Ne7 {[%emt 0:00:02]} 48. Qd6 {[%emt 0:00:01]} Nd5 {[%emt 0:00:03]} 49. Bxd5 {[%emt 0:00:06]} exd5 {[%emt 0:00:01]} 50. h3 {[%emt 0:00:02]} Qc2 {[%emt 0:00:03]} 51. Qxd5 {[%emt 0:00:02]} Qe2 {[%emt 0:00:01]} 52. Qd8+ {[%emt 0:00:02]} Kg7 {[%emt 0:00:01]} 53. Qd3 {[%emt 0:00:04]} Qf3 {[%emt 0:00:02]} 54. e4 {[%emt 0:00:01]} Qf4 {[%emt 0:00:01]} 55. Qe3 {[%emt 0:00:01]} Qe5 {[%emt 0:00:01]} 56. Qd4 {[%emt 0:00:00]} 1-0

[Event "47th GER-ch Blitz 2020"]
[Site "Magdeburg"]
[Date "2020.08.15"]
[Round "25.13"]
[White "Krause, Benedict"]
[Black "Voege, Tobias"]
[Result "1-0"]
[ECO "C11"]
[WhiteElo "2425"]
[BlackElo "2326"]
[Annotator "ChessBase"]
[PlyCount "63"]
[EventDate "2020.07.28"]
[EventType "tourn"]
[EventCountry "GER"]
[SourceTitle "playchess.com"]
[Source "ChessBase"]
[SourceQuality "1"]
[TimeControl "180+2"]

1. e4 {[%emt 0:00:00]} e6 {[%emt 0:00:00]} 2. d4 {[%emt 0:00:00]} d5 {[%emt 0:00:00]} 3. Nc3 {[%emt 0:00:01]} Nf6 {[%emt 0:00:00]} 4. e5 {[%emt 0:00:01]} Nfd7 {[%emt 0:00:01]} 5. f4 {[%emt 0:00:01]} c5 {[%emt 0:00:00]} 6. Nf3 {[%emt 0:00:01]} Nc6 {[%emt 0:00:01]} 7. Be3 {[%emt 0:00:00]} Qb6 {[%emt 0:00:01]} 8. Na4 {[%emt 0:00:06]} Qa5+ {[%emt 0:00:00]} 9. c3 {[%emt 0:00:02]} cxd4 {[%emt 0:00:01]} 10. b4 {[%emt 0:00:06]} Qc7 {[%emt 0:00:02]} 11. Nxd4 {[%emt 0:00:06]} Nxd4 {[%emt 0:00:01]} 12. Bxd4 {[%emt 0:00:01]} Nb8 {[%emt 0:00:01]} 13. Bd3 {[%emt 0:00:08]} Nc6 {[%emt 0:00:02]} 14. Bf2 {[%emt 0:00:02]} g5 {[%emt 0:00:17]} 15. g3 {[%emt 0:00:26]} b6 {[%emt 0:00:20]} 16. Qh5 {[%emt 0:00:55]} gxf4 {[%emt 0:00:28]} 17. gxf4 {[%emt 0:00:02]} Bb7 {[%emt 0:00:02]} 18. Ke2 {[%emt 0:00:33]} O-O-O {[%emt 0:00:16]} 19. Rac1 {[%emt 0:00:01]} Kb8 {[%emt 0:00:14]} 20. a3 {[%emt 0:00:04]} f6 {[%emt 0:00:22]} 21. exf6 {[%emt 0:00:08]} Bd6 {[%emt 0:00:03]} 22. Bg3 {[%emt 0:00:28]} e5 {[%emt 0:00:29]} 23. fxe5 {[%emt 0:00:11]} Bxe5 {[%emt 0:00:18]} 24. Bxe5 {[%emt 0:00:04]} Nxe5 {[%emt 0:00:01]} 25. Nb2 {[%emt 0:00:20]} Rhe8 {[%emt 0:00:05]} 26. Kd2 {[%emt 0:00:01]} Qd7 {[%emt 0:00:19]} 27. Rhe1 {[%emt 0:00:02]} d4 {[%emt 0:00:12]} 28. Rxe5 {[%emt 0:00:02]} dxc3+ {[%emt 0:00:01]} 29. Rxc3 {[%emt 0:00:01]} Rf8 {[%emt 0:00:11]} 30. Qg5 {[%emt 0:00:01]} Qh3 {[%emt 0:00:04]} 31. Qg3 {[%emt 0:00:01]} Qh6+ {[%emt 0:00:02]} 32. Re3+ 1-0

[Event "47th GER-ch Blitz 2020"]
[Site "Magdeburg"]
[Date "2020.08.15"]
[Round "26.2"]
[White "Weller, Manuel"]
[Black "Braeuning, Rudolf Wilhelm"]
[Result "0-1"]
[ECO "A20"]
[WhiteElo "2237"]
[BlackElo "2244"]
[Annotator "ChessBase"]
[PlyCount "31"]
[EventDate "2020.07.28"]
[EventType "tourn"]
[EventCountry "GER"]
[SourceTitle "playchess.com"]
[Source "ChessBase"]
[SourceQuality "1"]
[TimeControl "180+2"]

1. c4 {[%emt 0:00:00]} e5 {[%emt 0:00:00]} 2. g3 {[%emt 0:00:00]} c6 {[%emt 0:00:00]} 3. Nf3 {[%emt 0:00:01]} e4 {[%emt 0:00:01]} 4. Nd4 {[%emt 0:00:01]} d5 {[%emt 0:00:01]} 5. cxd5 {[%emt 0:00:02]} Nf6 {[%emt 0:00:00]} 6. Bg2 {[%emt 0:00:01]} Qxd5 {[%emt 0:00:08]} 7. Nc2 {[%emt 0:00:03]} Na6 {[%emt 0:00:15]} 8. Nc3 {[%emt 0:00:05]} Qe5 {[%emt 0:00:07]} 9. O-O {[%emt 0:00:16]} Be7 {[%emt 0:00:34]} 10. d3 {[%emt 0:00:13]} exd3 {[%emt 0:00:06]} 11. exd3 {[%emt 0:00:01]} Be6 {[%emt 0:00:22]} 12. Re1 {[%emt 0:00:07]} Qh5 {[%emt 0:00:11]} 13. Qxh5 {[%emt 0:00:30]} Nxh5 {[%emt 0:00:02]} 14. Nd4 {[%emt 0:00:03]} Bd7 {[%emt 0:00:19]} 15. Bg5 {[%emt 0:00:21]} Nf6 {[%emt 0:00:11]} 16. Bxf6 {[%emt 0:00:28]} 0-1

[Event "47th GER-ch Blitz 2020"]
[Site "Magdeburg"]
[Date "2020.08.15"]
[Round "26.3"]
[White "Voege, Tobias"]
[Black "Muranyi, Karl-Jasmin"]
[Result "0-1"]
[ECO "D10"]
[WhiteElo "2326"]
[BlackElo "2331"]
[Annotator "ChessBase"]
[PlyCount "73"]
[EventDate "2020.07.28"]
[EventType "tourn"]
[EventCountry "GER"]
[SourceTitle "playchess.com"]
[Source "ChessBase"]
[SourceQuality "1"]
[TimeControl "180+2"]

1. d4 {[%emt 0:00:00]} d5 {[%emt 0:00:00]} 2. c4 {[%emt 0:00:00]} c6 {[%emt 0:00:00]} 3. cxd5 {[%emt 0:00:00]} cxd5 {[%emt 0:00:00]} 4. Nc3 {[%emt 0:00:01]} Nf6 {[%emt 0:00:01]} 5. f3 {[%emt 0:00:01]} e6 {[%emt 0:00:05]} 6. e4 {[%emt 0:00:01]} Be7 {[%emt 0:00:05]} 7. e5 {[%emt 0:00:02]} Nfd7 {[%emt 0:00:01]} 8. f4 {[%emt 0:00:01]} O-O {[%emt 0:00:07]} 9. Nf3 {[%emt 0:00:02]} Nc6 {[%emt 0:00:01]} 10. Bd3 {[%emt 0:00:01]} f6 {[%emt 0:00:04]} 11. O-O {[%emt 0:00:24]} a6 {[%emt 0:00:03]} 12. Be3 {[%emt 0:00:07]} Qb6 {[%emt 0:00:02]} 13. exf6 {[%emt 0:00:13]} Bxf6 {[%emt 0:00:04]} 14. Rb1 {[%emt 0:01:02]} g6 {[%emt 0:00:14]} 15. Ne2 {[%emt 0:00:18]} Ne7 {[%emt 0:00:05]} 16. Bf2 {[%emt 0:00:07]} Nb8 {[%emt 0:00:08]} 17. Ne5 {[%emt 0:00:16]} Nbc6 {[%emt 0:00:09]} 18. g4 {[%emt 0:00:01]} Bg7 {[%emt 0:00:06]} 19. h4 {[%emt 0:00:05]} Nxe5 {[%emt 0:00:06]} 20. dxe5 {[%emt 0:00:03]} Qd8 {[%emt 0:00:04]} 21. Kg2 {[%emt 0:00:13]} Bd7 {[%emt 0:00:01]} 22. Qd2 {[%emt 0:00:04]} Bb5 {[%emt 0:00:10]} 23. Bc5 {[%emt 0:00:08]} Re8 {[%emt 0:00:16]} 24. Nd4 {[%emt 0:00:04]} Bxd3 {[%emt 0:00:04]} 25. Qxd3 {[%emt 0:00:01]} Nc6 {[%emt 0:00:00]} 26. Rbc1 {[%emt 0:00:13]} Nxd4 {[%emt 0:00:16]} 27. Bxd4 {[%emt 0:00:02]} Qxh4 {[%emt 0:00:06]} 28. Qf3 {[%emt 0:00:01]} Rac8 {[%emt 0:00:04]} 29. Rh1 {[%emt 0:00:08]} Qe7 {[%emt 0:00:03]} 30. Rxc8 {[%emt 0:00:07]} Rxc8 {[%emt 0:00:01]} 31. Bc3 {[%emt 0:00:06]} b5 {[%emt 0:00:11]} 32. a3 {[%emt 0:00:01]} Rc4 {[%emt 0:00:03]} 33. Kg3 {[%emt 0:00:08]} Qc7 {[%emt 0:00:16]} 34. Rd1 {[%emt 0:00:03]} g5 {[%emt 0:00:07]} 35. f5 Bxe5+ 36. Bxe5 Qxe5+ 37. Kh3 0-1

[Event "47th GER-ch Blitz 2020"]
[Site "Magdeburg"]
[Date "2020.08.15"]
[Round "26.4"]
[White "Holtel, Jasper"]
[Black "Krause, Benedict"]
[Result "1/2-1/2"]
[ECO "B13"]
[WhiteElo "2305"]
[BlackElo "2425"]
[Annotator "ChessBase"]
[PlyCount "69"]
[EventDate "2020.07.28"]
[EventType "tourn"]
[EventCountry "GER"]
[SourceTitle "playchess.com"]
[Source "ChessBase"]
[SourceQuality "1"]
[TimeControl "180+2"]

1. e4 c6 {[%emt 0:00:00]} 2. d4 {[%emt 0:00:00]} d5 {[%emt 0:00:00]} 3. exd5 {[%emt 0:00:01]} cxd5 {[%emt 0:00:01]} 4. c4 {[%emt 0:00:01]} Nf6 {[%emt 0:00:01]} 5. Nc3 {[%emt 0:00:01]} Nc6 {[%emt 0:00:00]} 6. Nf3 {[%emt 0:00:01]} Bg4 {[%emt 0:00:02]} 7. cxd5 {[%emt 0:00:01]} Nxd5 {[%emt 0:00:01]} 8. Qb3 {[%emt 0:00:01]} Bxf3 {[%emt 0:00:01]} 9. gxf3 {[%emt 0:00:02]} e6 {[%emt 0:00:01]} 10. Qxb7 {[%emt 0:00:01]} Nxd4 {[%emt 0:00:02]} 11. Bb5+ {[%emt 0:00:02]} Nxb5 {[%emt 0:00:01]} 12. Qc6+ {[%emt 0:00:01]} Ke7 {[%emt 0:00:12]} 13. Qxb5 {[%emt 0:00:02]} Nxc3 {[%emt 0:00:02]} 14. bxc3 {[%emt 0:00:06]} Rb8 {[%emt 0:00:01]} 15. Qc5+ {[%emt 0:00:07]} Ke8 {[%emt 0:00:02]} 16. Qxa7 {[%emt 0:00:04]} Bd6 {[%emt 0:00:02]} 17. Qd4 {[%emt 0:00:24]} f6 {[%emt 0:00:18]} 18. O-O {[%emt 0:00:04]} Be5 {[%emt 0:00:11]} 19. Qg4 {[%emt 0:00:10]} Kf7 {[%emt 0:00:02]} 20. Be3 {[%emt 0:00:18]} f5 {[%emt 0:00:42]} 21. Qh5+ {[%emt 0:00:14]} g6 {[%emt 0:00:01]} 22. Qh6 {[%emt 0:00:03]} Qf8 {[%emt 0:00:28]} 23. Qxf8+ {[%emt 0:00:07]} Rhxf8 {[%emt 0:00:01]} 24. Bd4 {[%emt 0:00:08]} Bxd4 {[%emt 0:00:14]} 25. cxd4 {[%emt 0:00:02]} Rfd8 {[%emt 0:00:10]} 26. Rfd1 {[%emt 0:00:05]} Rb4 {[%emt 0:00:01]} 27. a4 {[%emt 0:00:01]} Ra8 {[%emt 0:00:13]} 28. a5 {[%emt 0:00:03]} Rb5 {[%emt 0:00:01]} 29. a6 {[%emt 0:00:07]} Rb6 {[%emt 0:00:02]} 30. Rdc1 {[%emt 0:00:12]} Rbxa6 {[%emt 0:00:04]} 31. Rc7+ {[%emt 0:00:02]} Kf6 {[%emt 0:00:01]} 32. Rxa6 {[%emt 0:00:03]} Rxa6 {[%emt 0:00:01]} 33. Rxh7 {[%emt 0:00:02]} Rd6 {[%emt 0:00:00]} 34. Ra7 {[%emt 0:00:10]} Rxd4 {[%emt 0:00:02]} 35. Kg2 {[%emt 0:00:01]} 1/2-1/2

[Event "47th GER-ch Blitz 2020"]
[Site "Magdeburg"]
[Date "2020.08.15"]
[Round "26.6"]
[White "Siebrecht, Sebastian"]
[Black "Schoewel, Matthias"]
[Result "0-1"]
[ECO "A25"]
[WhiteElo "2429"]
[BlackElo "2218"]
[Annotator "ChessBase"]
[PlyCount "112"]
[EventDate "2020.07.28"]
[EventType "tourn"]
[EventCountry "GER"]
[SourceTitle "playchess.com"]
[Source "ChessBase"]
[SourceQuality "1"]
[TimeControl "180+2"]

1. c4 {[%emt 0:00:00]} e5 {[%emt 0:00:00]} 2. Nc3 Nc6 3. g3 {[%emt 0:00:05]} d6 {[%emt 0:00:03]} 4. Bg2 {[%emt 0:00:01]} Be6 {[%emt 0:00:01]} 5. Nd5 {[%emt 0:00:09]} Be7 {[%emt 0:00:07]} 6. e3 {[%emt 0:00:02]} Qd7 {[%emt 0:00:01]} 7. h3 {[%emt 0:00:02]} Bd8 {[%emt 0:00:07]} 8. Ne2 {[%emt 0:00:02]} Rb8 {[%emt 0:00:06]} 9. d4 {[%emt 0:00:06]} exd4 {[%emt 0:00:06]} 10. exd4 {[%emt 0:00:02]} Nce7 {[%emt 0:00:06]} 11. Nxe7 {[%emt 0:00:11]} Nxe7 {[%emt 0:00:06]} 12. d5 {[%emt 0:00:07]} Bf5 {[%emt 0:00:04]} 13. Qd4 {[%emt 0:00:04]} O-O {[%emt 0:00:10]} 14. Qxa7 {[%emt 0:00:02]} Qc8 {[%emt 0:00:02]} 15. Qd4 {[%emt 0:00:07]} Ng6 {[%emt 0:00:01]} 16. Be3 {[%emt 0:00:07]} Bf6 {[%emt 0:00:05]} 17. Qd2 {[%emt 0:00:01]} Re8 {[%emt 0:00:06]} 18. h4 {[%emt 0:00:07]} Ne5 {[%emt 0:00:05]} 19. Nf4 {[%emt 0:00:48]} Nxc4 {[%emt 0:00:05]} 20. Qe2 {[%emt 0:00:01]} Bxb2 {[%emt 0:00:16]} 21. Qxc4 {[%emt 0:00:06]} Bxa1 {[%emt 0:00:04]} 22. O-O {[%emt 0:00:02]} Be5 {[%emt 0:00:02]} 23. Rc1 {[%emt 0:00:06]} Re7 {[%emt 0:00:07]} 24. Nd3 {[%emt 0:00:03]} Bxd3 {[%emt 0:00:06]} 25. Qxd3 {[%emt 0:00:02]} Qe8 {[%emt 0:00:08]} 26. Bg5 {[%emt 0:00:07]} f6 {[%emt 0:00:06]} 27. Be3 {[%emt 0:00:04]} Bxg3 {[%emt 0:00:04]} 28. Bh3 {[%emt 0:00:05]} Bxh4 {[%emt 0:00:08]} 29. Be6+ {[%emt 0:00:10]} Rxe6 {[%emt 0:00:20]} 30. dxe6 {[%emt 0:00:01]} Qxe6 {[%emt 0:00:11]} 31. Rxc7 {[%emt 0:00:02]} Qg4+ {[%emt 0:00:24]} 32. Kf1 {[%emt 0:00:00]} Bg5 {[%emt 0:00:18]} 33. Qd5+ {[%emt 0:00:07]} Kh8 {[%emt 0:00:03]} 34. Ba7 {[%emt 0:00:12]} Rg8 {[%emt 0:00:07]} 35. Qxb7 {[%emt 0:00:06]} Qh3+ {[%emt 0:00:06]} 36. Ke2 {[%emt 0:00:02]} Qe6+ {[%emt 0:00:05]} 37. Kf1 {[%emt 0:00:02]} Qxa2 {[%emt 0:00:01]} 38. Rc8 {[%emt 0:00:03]} h5 {[%emt 0:00:04]} 39. Rc7 {[%emt 0:00:07]} Qe6 {[%emt 0:00:05]} 40. Bd4 {[%emt 0:00:22]} Re8 {[%emt 0:00:02]} 41. Qf3 {[%emt 0:00:18]} Qg4 {[%emt 0:00:05]} 42. Qxg4 {[%emt 0:00:04]} hxg4 {[%emt 0:00:01]} 43. Rd7 {[%emt 0:00:00]} Bf4 {[%emt 0:00:01]} 44. Kg2 {[%emt 0:00:01]} Re6 {[%emt 0:00:02]} 45. Bb6 {[%emt 0:00:03]} Kh7 {[%emt 0:00:01]} 46. Bc7 {[%emt 0:00:01]} Kg6 {[%emt 0:00:02]} 47. Bd8 {[%emt 0:00:02]} Be5 {[%emt 0:00:01]} 48. Bc7 {[%emt 0:00:02]} f5 {[%emt 0:00:01]} 49. Bd8 {[%emt 0:00:01]} Bf6 {[%emt 0:00:01]} 50. Bc7 {[%emt 0:00:01]} Be5 {[%emt 0:00:01]} 51. Bd8 {[%emt 0:00:01]} f4 {[%emt 0:00:01]} 52. f3 {[%emt 0:00:02]} g3 {[%emt 0:00:01]} 53. Kh3 {[%emt 0:00:01]} Bf6 {[%emt 0:00:01]} 54. Bc7 {[%emt 0:00:01]} Re2 {[%emt 0:00:02]} 55. Bxd6 {[%emt 0:00:01]} Kf5 {[%emt 0:00:01]} 56. Bc5 {[%emt 0:00:02]} Rh2# 0-1

[Event "47th GER-ch Blitz 2020"]
[Site "Magdeburg"]
[Date "2020.08.15"]
[Round "26.7"]
[White "Braun, Georg"]
[Black "Berger, Steve"]
[Result "1-0"]
[ECO "C11"]
[WhiteElo "2360"]
[BlackElo "2408"]
[Annotator "ChessBase"]
[PlyCount "87"]
[EventDate "2020.07.28"]
[EventType "tourn"]
[EventCountry "GER"]
[SourceTitle "playchess.com"]
[Source "ChessBase"]
[SourceQuality "1"]
[TimeControl "180+2"]

1. e4 {[%emt 0:00:00]} e6 {[%emt 0:00:00]} 2. d4 {[%emt 0:00:00]} d5 {[%emt 0:00:00]} 3. Nc3 {[%emt 0:00:01]} Nf6 {[%emt 0:00:00]} 4. Bg5 {[%emt 0:00:01]} dxe4 {[%emt 0:00:01]} 5. Nxe4 {[%emt 0:00:01]} Nbd7 {[%emt 0:00:01]} 6. Qf3 {[%emt 0:00:01]} Be7 {[%emt 0:00:06]} 7. O-O-O {[%emt 0:00:03]} Nxe4 {[%emt 0:00:06]} 8. Bxe7 {[%emt 0:00:02]} Qxe7 {[%emt 0:00:04]} 9. Qxe4 {[%emt 0:00:01]} Nf6 {[%emt 0:00:10]} 10. Qh4 {[%emt 0:00:01]} Bd7 {[%emt 0:00:08]} 11. Nf3 {[%emt 0:00:02]} O-O-O {[%emt 0:00:03]} 12. Ne5 {[%emt 0:00:05]} Be8 {[%emt 0:00:08]} 13. Be2 {[%emt 0:00:08]} Nd5 {[%emt 0:00:07]} 14. Qxe7 {[%emt 0:00:07]} Nxe7 {[%emt 0:00:01]} 15. Bf3 {[%emt 0:00:04]} f6 {[%emt 0:00:09]} 16. Nc4 {[%emt 0:00:04]} Bc6 {[%emt 0:00:01]} 17. Bxc6 {[%emt 0:00:03]} Nxc6 {[%emt 0:00:01]} 18. c3 {[%emt 0:00:01]} Rhe8 {[%emt 0:00:04]} 19. Rhe1 {[%emt 0:00:01]} b5 {[%emt 0:00:30]} 20. Ne3 {[%emt 0:00:08]} e5 {[%emt 0:00:09]} 21. dxe5 {[%emt 0:00:04]} Nxe5 {[%emt 0:00:09]} 22. Kc2 {[%emt 0:00:02]} c6 {[%emt 0:00:22]} 23. Nf5 {[%emt 0:00:05]} Rxd1 {[%emt 0:00:17]} 24. Rxd1 {[%emt 0:00:02]} Kc7 {[%emt 0:00:01]} 25. Nxg7 {[%emt 0:00:05]} Rg8 {[%emt 0:00:01]} 26. Ne6+ {[%emt 0:00:00]} Kb6 {[%emt 0:00:01]} 27. Nf4 {[%emt 0:00:02]} Rg4 {[%emt 0:00:06]} 28. g3 {[%emt 0:00:01]} Rg7 {[%emt 0:00:12]} 29. h3 {[%emt 0:00:07]} Re7 {[%emt 0:00:03]} 30. Rd6 {[%emt 0:00:05]} Rf7 {[%emt 0:00:09]} 31. Nh5 {[%emt 0:00:28]} Nd7 {[%emt 0:00:05]} 32. b4 {[%emt 0:00:07]} Kc7 {[%emt 0:00:02]} 33. Rd4 {[%emt 0:00:02]} Re7 {[%emt 0:00:02]} 34. Kd1 {[%emt 0:00:08]} Re5 {[%emt 0:00:04]} 35. Nf4 {[%emt 0:00:02]} Nb6 {[%emt 0:00:04]} 36. Nd3 {[%emt 0:00:05]} Rh5 {[%emt 0:00:04]} 37. h4 {[%emt 0:00:03]} Nd5 {[%emt 0:00:05]} 38. Kd2 {[%emt 0:00:13]} Rf5 {[%emt 0:00:10]} 39. Rg4 {[%emt 0:00:03]} h5 {[%emt 0:00:07]} 40. Rg7+ {[%emt 0:00:01]} Kb8 {[%emt 0:00:00]} 41. f4 {[%emt 0:00:04]} Nc7 {[%emt 0:00:05]} 42. Nc5 {[%emt 0:00:06]} Rd5+ {[%emt 0:00:06]} 43. Kc2 {[%emt 0:00:07]} a5 {[%emt 0:00:09]} 44. Nd7+ {[%emt 0:00:06]} 1-0

[Event "47th GER-ch Blitz 2020"]
[Site "Magdeburg"]
[Date "2020.08.15"]
[Round "26.8"]
[White "Ehmann, Thilo"]
[Black "Kopylov, Michael"]
[Result "1-0"]
[ECO "B01"]
[WhiteElo "2329"]
[BlackElo "2407"]
[Annotator "ChessBase"]
[PlyCount "57"]
[EventDate "2020.07.28"]
[EventType "tourn"]
[EventCountry "GER"]
[SourceTitle "playchess.com"]
[Source "ChessBase"]
[SourceQuality "1"]
[TimeControl "180+2"]

1. e4 {[%emt 0:00:00]} d5 {[%emt 0:00:00]} 2. exd5 {[%emt 0:00:00]} Qxd5 {[%emt 0:00:00]} 3. Nf3 {[%emt 0:00:00]} Bg4 {[%emt 0:00:01]} 4. Be2 {[%emt 0:00:01]} Nc6 {[%emt 0:00:00]} 5. Nc3 {[%emt 0:00:05]} Qd7 {[%emt 0:00:03]} 6. h3 {[%emt 0:00:04]} Bf5 {[%emt 0:00:02]} 7. d3 {[%emt 0:00:06]} Nf6 {[%emt 0:00:03]} 8. Be3 {[%emt 0:00:05]} e5 {[%emt 0:00:03]} 9. a3 {[%emt 0:00:13]} O-O-O {[%emt 0:00:06]} 10. Ng5 {[%emt 0:00:51]} Nd4 {[%emt 0:00:18]} 11. Qd2 {[%emt 0:00:13]} Bg6 {[%emt 0:00:13]} 12. O-O {[%emt 0:00:19]} Kb8 {[%emt 0:00:03]} 13. Nge4 {[%emt 0:00:29]} Nxe4 {[%emt 0:00:11]} 14. dxe4 {[%emt 0:00:05]} Bc5 {[%emt 0:00:25]} 15. Bd3 {[%emt 0:00:03]} Bb6 {[%emt 0:00:16]} 16. Nd5 {[%emt 0:00:14]} c6 {[%emt 0:00:01]} 17. Nxb6 axb6 18. Qb4 {[%emt 0:00:09]} Kc7 {[%emt 0:00:18]} 19. a4 {[%emt 0:00:11]} Qd6 {[%emt 0:00:14]} 20. Qe1 {[%emt 0:00:01]} Ra8 {[%emt 0:00:09]} 21. a5 {[%emt 0:00:03]} bxa5 {[%emt 0:00:27]} 22. Rxa5 {[%emt 0:00:05]} b6 {[%emt 0:00:05]} 23. Ra1 {[%emt 0:00:03]} Kb7 {[%emt 0:00:03]} 24. c3 {[%emt 0:00:08]} Nf3+ {[%emt 0:00:08]} 25. gxf3 {[%emt 0:00:01]} Qxd3 {[%emt 0:00:01]} 26. Rd1 Qb5 {[%emt 0:00:08]} 27. Rd7+ Kc8 28. Qd2 {[%emt 0:00:03]} Re8 {[%emt 0:00:23]} 29. Qd6 {[%emt 0:00:05]} 1-0

[Event "47th GER-ch Blitz 2020"]
[Site "Magdeburg"]
[Date "2020.08.15"]
[Round "26.9"]
[White "Baskin, Robert"]
[Black "Hess, Max"]
[Result "1-0"]
[ECO "B06"]
[WhiteElo "2390"]
[BlackElo "2378"]
[Annotator "ChessBase"]
[PlyCount "60"]
[EventDate "2020.07.28"]
[EventType "tourn"]
[EventCountry "GER"]
[SourceTitle "playchess.com"]
[Source "ChessBase"]
[SourceQuality "1"]
[TimeControl "180+2"]

1. e4 {[%emt 0:00:00]} g6 {[%emt 0:00:00]} 2. d4 c6 3. Nf3 {[%emt 0:00:02]} d5 {[%emt 0:00:01]} 4. e5 {[%emt 0:00:01]} h5 {[%emt 0:00:02]} 5. h3 {[%emt 0:00:03]} Nh6 {[%emt 0:00:03]} 6. c4 {[%emt 0:00:01]} Nf5 {[%emt 0:00:25]} 7. Nc3 {[%emt 0:00:02]} e6 {[%emt 0:00:17]} 8. Bd3 {[%emt 0:00:10]} Be7 {[%emt 0:00:05]} 9. Bxf5 {[%emt 0:00:18]} gxf5 {[%emt 0:00:09]} 10. cxd5 {[%emt 0:00:01]} cxd5 {[%emt 0:00:01]} 11. h4 {[%emt 0:00:01]} Nc6 {[%emt 0:00:03]} 12. Bg5 {[%emt 0:00:02]} Bxg5 {[%emt 0:00:28]} 13. hxg5 {[%emt 0:00:04]} Qb6 {[%emt 0:00:04]} 14. Qd2 {[%emt 0:00:03]} Bd7 {[%emt 0:00:03]} 15. Na4 {[%emt 0:00:11]} Qb4 {[%emt 0:00:14]} 16. Nc5 {[%emt 0:00:03]} O-O-O {[%emt 0:00:05]} 17. a3 {[%emt 0:00:20]} Qxd2+ {[%emt 0:00:06]} 18. Kxd2 {[%emt 0:00:01]} b6 {[%emt 0:00:07]} 19. Nd3 {[%emt 0:00:01]} Na5 {[%emt 0:00:04]} 20. Rac1+ {[%emt 0:00:15]} Kb7 {[%emt 0:00:02]} 21. Rc3 {[%emt 0:00:01]} Rc8 {[%emt 0:00:06]} 22. Nf4 {[%emt 0:00:03]} Nc4+ {[%emt 0:00:07]} 23. Kc2 {[%emt 0:00:12]} Rc7 {[%emt 0:00:17]} 24. Rxh5 {[%emt 0:00:10]} Rhc8 {[%emt 0:00:01]} 25. Kb1 {[%emt 0:00:05]} Bb5 {[%emt 0:00:06]} 26. Ka2 {[%emt 0:00:13]} Na5 {[%emt 0:00:19]} 27. Rxc7+ {[%emt 0:00:07]} Rxc7 {[%emt 0:00:01]} 28. Rh7 {[%emt 0:00:15]} Bc4+ {[%emt 0:00:02]} 29. Kb1 {[%emt 0:00:02]} Nb3 {[%emt 0:00:34]} 30. g6 {[%emt 0:00:10]} Na5 1-0